bitfinex/quotes_SOLUSD_20250924
["timestamp","ask_amount","ask_price","bid_price","bid_amount"]
[1758746025909,26.0,212.3,212.25,17.15998821]
[1758746026111,3.41215254,212.27,212.25,17.15998821]
[1758746027212,3.41215254,212.27,212.21,16.49309645]
[1758746027386,3.41215254,212.27,212.22,0.67]
[1758746027705,29.41215254,212.3,212.23,3.41215254]
[1758746027907,29.41215254,212.3,212.24,0.67]
[1758746028494,26.0,212.32,212.24,4.08215254]
[1758746028694,29.41215254,212.32,212.25,4.08215254]
[1758746028894,29.41215254,212.32,212.26,0.67]
[1758746029207,3.41215254,212.31,212.27,16.48843453]
[1758746029416,3.41215254,212.31,212.28,0.67]
[1758746029613,3.41215254,212.31,212.29,0.67]
[1758746031215,3.41215254,212.31,212.3,4.71031559]
[1758746031414,6.50357379,212.31,212.3,4.71031559]
[1758746032295,7.00357379,212.31,212.28,4.71075937]
[1758746032608,3.41215254,212.29,212.28,4.71075937]
[1758746032797,6.50357379,212.29,212.28,4.71075937]
[1758746033199,6.50357379,212.29,212.25,16.48998821]
[1758746033521,3.41215254,212.26,212.23,4.7117086]
[1758746033705,3.41215254,212.24,212.23,4.7117086]
[1758746034309,6.50999187,212.24,212.23,4.7117086]
[1758746035220,6.50999187,212.24,212.21,16.49298189]
[1758746035401,3.09783933,212.23,212.21,17.18298189]
[1758746035717,3.41215254,212.22,212.21,17.18298189]
[1758746036220,6.51775501,212.22,212.21,17.18298189]
[1758746037117,3.10560247,212.22,212.21,17.18298189]
[1758746038119,4.4415035,212.32,212.21,44.1567008]
[1758746038306,3.41215254,212.29,212.22,4.10215254]
[1758746038504,3.41215254,212.29,212.23,0.69]
[1758746038826,3.41215254,212.3,212.23,4.10215254]
[1758746039000,3.41215254,212.31,212.24,4.10215254]
[1758746039327,3.41215254,212.31,212.26,16.48921134]
[1758746039510,3.41215254,212.31,212.27,0.69]
[1758746039707,3.41215254,212.31,212.28,0.69]
[1758746040226,3.41215254,212.3,212.28,0.66]
[1758746040724,3.9415035,212.32,212.28,4.07215254]
[1758746040919,3.41215254,212.34,212.29,0.66]
[1758746041110,3.41215254,212.33,212.3,0.66]
[1758746041312,3.41215254,212.34,212.32,4.70987189]
[1758746041513,4.4415035,212.38,212.32,16.48455161]
[1758746041714,3.41215254,212.34,212.32,16.48455161]
[1758746041920,3.41215254,212.33,212.32,4.70987189]
[1758746044420,0.5,212.38,212.32,16.48455161]
[1758746044421,3.41215254,212.35,212.32,16.48455161]
[1758746044628,3.41215254,212.34,212.32,16.48455161]
[1758746044929,29.41215254,212.35,212.32,17.14455161]
[1758746045431,3.41215254,212.34,212.32,17.14455161]
[1758746046535,3.41215254,212.33,212.32,4.70987189]
[1758746048434,3.41215254,212.33,212.31,4.71009373]
[1758746048612,3.41215254,212.33,212.31,5.37009373]
[1758746048808,3.91215254,212.32,212.26,12.43762065]
[1758746049007,3.41215254,212.28,212.26,11.77762065]
[1758746049237,3.41215254,212.28,212.27,4.71098129]
[1758746049611,3.41215254,212.28,212.24,4.71164719]
[1758746049815,3.41215254,212.25,212.24,4.71164719]
[1758746050030,6.54859996,212.25,212.24,4.71164719]
[1758746050219,3.41215254,212.25,212.24,4.71164719]
[1758746050546,2.19173348,212.25,212.21,16.49309645]
[1758746050829,2.19173348,212.23,212.22,0.66]
[1758746051212,2.19173348,212.24,212.21,16.49309645]
[1758746051414,2.19173348,212.24,212.21,17.15309645]
[1758746052342,0.5,212.27,212.21,17.15309645]
[1758746052343,2.19173348,212.22,212.21,17.15309645]
[1758746052733,2.19173348,212.23,212.21,16.49309645]
[1758746054013,2.19173348,212.24,212.22,0.66]
[1758746054750,2.19173348,212.27,212.23,0.66]
[1758746055854,2.19173348,212.27,212.24,0.66]
[1758746056025,2.19173348,212.27,212.25,5.3714252]
[1758746056550,2.19173348,212.27,212.25,17.14998821]
[1758746057826,2.19173348,212.26,212.25,17.14998821]
[1758746059148,2.19173348,212.28,212.25,17.14998821]
[1758746059348,37.5,212.32,212.26,0.66]
[1758746059649,2.19173348,212.3,212.26,0.66]
[1758746059944,2.19173348,212.3,212.27,17.14843453]
[1758746060443,2.19173348,212.3,212.28,0.66]
[1758746060616,2.19173348,212.3,212.27,16.48843453]
[1758746060818,2.19173348,212.32,212.29,0.66]
[1758746061026,2.19173348,212.32,212.3,0.7]
[1758746062020,2.19173348,212.32,212.31,4.71009373]
[1758746065649,28.19173348,212.33,212.31,4.71009373]
[1758746067146,28.19173348,212.33,212.31,5.41009373]
[1758746067336,26.0,212.33,212.32,0.7]
[1758746068136,26.0,212.29,212.21,0.7]
[1758746068430,2.19173348,212.25,212.21,0.7]
[1758746068628,2.19173348,212.26,212.2,11.78133836]
[1758746068836,2.19173348,212.26,212.22,0.7]
[1758746069529,2.19173348,212.26,212.23,4.71186919]
[1758746070129,2.19173348,212.24,212.23,4.71186919]
[1758746072258,2.19173348,212.24,212.22,4.7120502]
[1758746072543,30.71056933,212.29,212.22,4.7120502]
[1758746072856,2.19173348,212.25,212.23,0.7]
[1758746074359,2.19173348,212.25,212.24,4.71164719]
[1758746074652,2.19173348,212.25,212.24,5.41164719]
[1758746086543,26.5,212.3,212.24,17.19076516]
[1758746086544,2.19173348,212.27,212.24,17.19076516]
[1758746086744,2.19173348,212.29,212.25,0.7]
[1758746087168,2.19173348,212.3,212.25,0.7]
[1758746087868,26.0,212.34,212.25,2.89173348]
[1758746088057,55.70418787,212.38,212.24,40.04900111]
[1758746088058,37.9,212.38,212.26,2.89173348]
[1758746088374,2.19173348,212.32,212.27,38.1]
[1758746088562,2.19173348,212.32,212.28,16.4876578]
[1758746088770,2.19173348,212.32,212.28,17.1876578]
[1758746088951,2.19173348,212.32,212.29,0.7]
[1758746089151,2.19173348,212.32,212.3,0.7]
[1758746089767,2.19173348,212.32,212.31,4.71009373]
[1758746090075,2.19173348,212.33,212.31,16.48532805]
[1758746092568,2.19173348,212.32,212.31,16.48532805]
[1758746093374,2.19173348,212.32,212.31,15.98532805]
[1758746094250,2.69173348,212.32,212.29,4.71053747]
[1758746094453,2.19173348,212.3,212.29,4.71053747]
[1758746094668,2.69173348,212.3,212.29,4.71053747]
[1758746095179,2.19173348,212.3,212.29,4.71053747]
[1758746096172,2.19173348,212.3,212.27,11.77740557]
[1758746096472,2.19173348,212.28,212.27,11.77740557]
[1758746098554,2.19173348,212.29,212.24,40.04900111]
[1758746098772,2.19173348,212.29,212.25,0.68]
[1758746098967,2.19173348,212.29,212.26,0.68]
[1758746099167,2.19173348,212.28,212.27,0.68]
[1758746099459,2.19173348,212.29,212.27,0.68]
[1758746100179,2.19173348,212.29,212.28,4.71075937]
[1758746101271,3.13991213,212.34,212.28,16.4876578]
[1758746101473,28.19173348,212.32,212.29,0.67]
[1758746101978,28.19173348,212.32,212.28,16.4876578]
[1758746101979,2.19173348,212.32,212.3,0.67]
[1758746102163,26.0,212.33,212.31,4.71009373]
[1758746102376,2.19173348,212.32,212.31,4.71009373]
[1758746104159,2.19173348,212.32,212.3,16.48604622]
[1758746104357,2.19173348,212.32,212.3,17.15604622]
[1758746110273,2.19173348,212.32,212.3,0.67]
[1758746111486,2.19173348,212.32,212.31,4.71009373]
[1758746112565,3.42180564,212.32,212.31,4.71009373]
[1758746114468,26.0,212.33,212.31,5.38009373]
[1758746114669,3.42180564,212.32,212.31,5.38009373]
[1758746115089,3.9415035,212.39,212.31,20.57713369]
[1758746115291,3.42180564,212.37,212.32,0.67]
[1758746115499,3.42180564,212.36,212.32,0.67]
[1758746116480,3.42180564,212.36,212.33,16.48377525]
[1758746116667,3.42180564,212.36,212.34,0.67]
[1758746116996,3.42180564,212.36,212.35,0.67]
[1758746117497,3.42180564,212.37,212.35,0.67]
[1758746117866,6.56420817,212.38,212.36,0.67]
[1758746118197,3.9415035,212.45,212.37,4.09180564]
[1758746118376,3.42180564,212.43,212.39,16.4791186]
[1758746118693,3.14153739,212.42,212.4,0.67]
[1758746118890,3.42180564,212.45,212.4,0.67]
[1758746119079,3.14190078,212.44,212.4,4.09180564]
[1758746119389,4.1415035,212.49,212.4,4.09180564]
[1758746119390,3.42180564,212.46,212.41,0.67]
[1758746119598,3.14190078,212.45,212.41,0.67]
[1758746119982,3.42180564,212.46,212.41,0.67]
[1758746120409,3.42180564,212.46,212.42,16.47679125]
[1758746120597,3.42180564,212.46,212.43,0.67]
[1758746120791,3.42180564,212.44,212.42,4.70765464]
[1758746121000,3.92180564,212.43,212.4,4.70796106]
[1758746121174,3.42180564,212.41,212.4,4.70796106]
[1758746121379,0.5,212.43,212.4,4.70796106]
[1758746121587,3.42180564,212.41,212.4,4.70796106]
[1758746122372,3.42180564,212.41,212.39,11.77034621]
[1758746122572,3.42180564,212.41,212.38,4.70854129]
[1758746122573,3.42180564,212.4,212.38,4.70854129]
[1758746123700,26.5,212.43,212.36,11.77208721]
[1758746123900,3.42180564,212.4,212.38,0.66]
[1758746124303,3.42180564,212.39,212.38,0.66]
[1758746125295,3.42180564,212.4,212.38,0.66]
[1758746125801,3.42180564,212.4,212.39,4.7083196]
[1758746127292,3.42180564,212.4,212.38,4.70854129]
[1758746127603,3.42180564,212.4,212.38,5.36854129]
[1758746128306,3.42180564,212.41,212.38,17.13989452]
[1758746129606,3.42180564,212.41,212.38,5.36854129]
[1758746130301,3.42180564,212.4,212.38,4.70854129]
[1758746131097,3.42180564,212.4,212.38,5.36854129]
[1758746137802,3.42180564,212.4,212.39,0.66]
[1758746138006,3.42180564,212.42,212.39,0.66]
[1758746138203,3.42180564,212.43,212.39,0.66]
[1758746139205,3.42180564,212.42,212.4,4.70809792]
[1758746139412,3.42180564,212.42,212.4,5.36809792]
[1758746140705,3.42180564,212.42,212.41,0.66]
[1758746141297,3.42180564,212.42,212.4,4.70809792]
[1758746141298,3.42180564,212.42,212.39,0.66]
[1758746141604,3.42180564,212.42,212.4,0.66]
[1758746142388,3.42180564,212.42,212.41,4.70787627]
[1758746144688,3.42180564,212.42,212.41,0.66]
[1758746146211,3.42180564,212.42,212.38,12.43135323]
[1758746146412,26.0,212.44,212.38,12.43135323]
[1758746146413,3.42180564,212.41,212.38,12.43135323]
[1758746146591,26.5,212.44,212.4,4.70809792]
[1758746146916,3.42180564,212.41,212.4,4.70809792]
[1758746153922,3.42180564,212.41,212.4,0.7]
[1758746155010,3.42180564,212.41,212.4,5.40809792]
[1758746155928,26.0,212.43,212.4,5.40809792]
[1758746156120,3.42180564,212.41,212.4,5.40809792]
[1758746157024,134.6,212.47,212.4,17.17834274]
[1758746157225,3.42180564,212.45,212.41,0.7]
[1758746157918,3.42180564,212.44,212.41,0.7]
[1758746158308,3.42180564,212.43,212.41,0.7]
[1758746158509,3.42180564,212.42,212.4,4.70809792]
[1758746158715,3.42180564,212.41,212.4,4.70809792]
[1758746159131,3.42180564,212.41,212.39,4.7083196]
[1758746159434,3.42180564,212.4,212.39,4.7083196]
[1758746161123,3.42180564,212.4,212.38,4.70854129]
[1758746161325,3.42180564,212.39,212.38,5.35854129]
[1758746164632,3.42180564,212.4,212.38,5.35854129]
[1758746164826,3.42180564,212.4,212.39,0.65]
[1758746166013,3.42180564,212.4,212.39,5.3583196]
[1758746167744,3.42180564,212.4,212.34,11.77312069]
[1758746167949,3.42180564,212.35,212.33,5.35965007]
[1758746168130,3.42180564,212.34,212.33,4.70965007]
[1758746168737,3.42180564,212.34,212.33,5.35965007]
[1758746173556,3.42180564,212.34,212.31,16.48490438]
[1758746173747,3.42180564,212.34,212.32,0.65]
[1758746173945,3.42180564,212.34,212.33,0.65]
[1758746174346,3.42180564,212.34,212.31,17.13490438]
[1758746174549,2.18972936,212.33,212.32,0.65]
[1758746174855,2.18972936,212.33,212.31,16.48490438]
[1758746175070,2.18972936,212.32,212.31,17.13490438]
[1758746175439,2.18972936,212.32,212.31,5.36009373]
[1758746178768,2.18972936,212.32,212.31,4.71009373]
[1758746179155,2.18972936,212.32,212.31,5.36009373]
[1758746182952,26.0,212.34,212.31,5.36009373]
[1758746183149,28.18972936,212.34,212.32,0.69]
[1758746183446,28.18972936,212.34,212.33,4.70965007]
[1758746183646,28.18972936,212.34,212.33,5.39965007]
[1758746184472,2.18972936,212.34,212.33,5.39965007]
[1758746186568,2.18972936,212.34,212.33,4.70965007]
[1758746186954,2.18972936,212.34,212.33,5.39965007]
[1758746192786,2.18972936,212.34,212.33,0.69]
[1758746193785,26.0,212.36,212.33,17.17377525]
[1758746193961,2.18972936,212.38,212.34,0.69]
[1758746194164,2.18972936,212.39,212.34,2.87972936]
[1758746194367,2.18972936,212.39,212.35,0.69]
[1758746195658,26.0,212.4,212.35,0.69]
[1758746195858,2.18972936,212.39,212.35,0.69]
[1758746196286,2.18972936,212.39,212.36,16.48144659]
[1758746196494,2.18972936,212.39,212.37,0.69]
[1758746196684,2.18972936,212.39,212.38,0.69]
[1758746198489,2.18972936,212.39,212.38,5.39854129]
[1758746202504,26.0,212.4,212.38,5.39854129]
[1758746202707,2.18972936,212.39,212.38,5.39854129]
[1758746203970,2.18972936,212.39,212.38,4.70854129]
[1758746206089,2.18972936,212.39,212.37,4.708763]
[1758746206287,2.18972936,212.38,212.37,4.708763]
[1758746207702,2.18972936,212.38,212.34,17.17299895]
[1758746208003,2.18972936,212.37,212.36,0.69]
[1758746208607,2.18972936,212.37,212.36,5.39898474]
[1758746210795,2.18972936,212.38,212.36,17.17144659]
[1758746212701,26.0,212.4,212.36,17.17144659]
[1758746212909,2.18972936,212.38,212.37,0.68]
[1758746215805,28.18972936,212.4,212.38,4.70854129]
[1758746216015,28.18972936,212.4,212.39,0.68]
[1758746216395,28.18972936,212.4,212.38,4.70854129]
[1758746216713,28.18972936,212.4,212.38,5.38854129]
[1758746217715,26.0,212.4,212.38,5.38854129]
[1758746217914,28.18972936,212.4,212.38,5.38854129]
[1758746218096,28.18972936,212.4,212.37,0.68]
[1758746218290,2.18972936,212.39,212.37,0.68]
[1758746218608,2.18972936,212.39,212.38,0.68]
[1758746219090,2.18972936,212.39,212.38,5.38854129]
[1758746221619,28.18972936,212.4,212.38,5.38854129]
[1758746222122,26.0,212.4,212.38,5.38854129]
[1758746222330,28.18972936,212.4,212.38,5.38854129]
[1758746222830,2.18972936,212.39,212.38,5.38854129]
[1758746223622,2.18972936,212.39,212.38,4.70854129]
[1758746225210,2.18972936,212.39,212.38,0.7]
[1758746227205,2.18972936,212.39,212.38,5.40854129]
[1758746228605,26.0,212.4,212.38,5.40854129]
[1758746228797,2.18972936,212.39,212.38,5.40854129]
[1758746230211,2.68972936,212.39,212.37,4.70872659]
[1758746230419,4.70768489,212.42,212.31,0.7]
[1758746230420,31.82439084,212.38,212.31,0.7]
[1758746230616,2.18972936,212.32,212.31,17.1853168]
[1758746231523,26.5,212.38,212.31,17.1853168]
[1758746231831,2.18972936,212.35,212.32,0.7]
[1758746232208,2.18972936,212.35,212.33,0.7]
[1758746232609,2.18972936,212.35,212.31,16.4853168]
[1758746232809,2.18972936,212.35,212.32,0.7]
[1758746233037,2.18972936,212.35,212.33,4.70965007]
[1758746233229,2.18972936,212.35,212.33,5.40965007]
[1758746233436,2.18972936,212.34,212.33,5.40965007]
[1758746233726,2.18972936,212.34,212.33,4.70965007]
[1758746234027,2.18972936,212.36,212.33,16.48377525]
[1758746234405,2.18972936,212.36,212.34,0.7]
[1758746235010,2.18972936,212.36,212.35,5.40920649]
[1758746235543,2.18972936,212.36,212.35,4.70920649]
[1758746236305,2.18972936,212.36,212.35,5.40920649]
[1758746236502,26.0,212.38,212.35,5.40920649]
[1758746236807,3.42063592,212.36,212.35,5.40920649]
[1758746237128,3.42063592,212.36,212.35,17.18222273]
[1758746241028,3.42063592,212.36,212.31,16.48532805]
[1758746241226,3.42063592,212.33,212.32,0.67]
[1758746242934,3.42063592,212.33,212.32,5.37987189]
[1758746243642,3.42063592,212.33,212.31,4.71004381]
[1758746243810,3.42063592,212.33,212.29,4.71053747]
[1758746243811,3.42063592,212.32,212.29,4.71053747]
[1758746244010,3.42063592,212.3,212.28,4.71075675]
[1758746244232,3.42063592,212.29,212.28,4.71075675]
[1758746248619,3.42063592,212.29,212.26,4.71120324]
[1758746248825,3.42063592,212.27,212.26,4.71120324]
[1758746249408,3.42063592,212.27,212.26,5.38120324]
[1758746255020,3.42063592,212.27,212.26,4.71120324]
[1758746255225,3.42063592,212.27,212.26,5.38120324]
[1758746259315,3.42063592,212.27,212.25,11.77832934]
[1758746259522,3.42063592,212.26,212.25,11.77832934]
[1758746260022,3.42063592,212.26,212.25,12.44832934]
[1758746260749,3.42063592,212.26,212.25,11.77832934]
[1758746260954,3.42063592,212.26,212.25,17.15975454]
[1758746262832,11.77832934,212.33,212.25,17.15975454]
[1758746262833,0.5,212.32,212.25,17.15975454]
[1758746263055,3.42063592,212.26,212.25,16.48975454]
[1758746263630,3.42063592,212.26,212.25,17.15975454]
[1758746263835,3.42063592,212.27,212.25,17.15975454]
[1758746264036,3.42063592,212.27,212.26,5.38120324]
[1758746267940,26.0,212.31,212.26,17.15921134]
[1758746268160,3.42063592,212.27,212.26,16.48921134]
[1758746268760,3.42063592,212.27,212.26,17.15921134]
[1758746268963,26.0,212.31,212.26,17.15921134]
[1758746269161,3.42063592,212.27,212.26,16.48921134]
[1758746269660,3.42063592,212.27,212.26,12.4480081]
[1758746271563,3.42063592,212.27,212.26,17.15921134]
[1758746272755,26.0,212.32,212.26,17.15921134]
[1758746272960,3.42063592,212.29,212.27,0.68]
[1758746273136,3.42063592,212.31,212.27,37.62]
[1758746273342,3.42063592,212.31,212.28,0.68]
[1758746273857,3.42063592,212.31,212.29,4.71053747]
[1758746274038,3.42063592,212.31,212.3,0.68]
[1758746275660,3.42063592,212.31,212.3,5.39031559]
[1758746277059,3.42063592,212.31,212.28,11.77663857]
[1758746277060,3.92063592,212.31,212.25,16.48998821]
[1758746277260,3.42063592,212.26,212.25,16.48998821]
[1758746280357,3.42063592,212.26,212.25,17.17998821]
[1758746290273,3.42063592,212.26,212.25,16.48998821]
[1758746290473,3.42063592,212.26,212.25,17.17998821]
[1758746298180,3.42063592,212.26,212.25,5.4014252]
[1758746298380,3.42063592,212.26,212.25,4.7114252]
[1758746298582,2.19134602,212.26,212.25,4.7114252]
[1758746298789,2.19134602,212.26,212.25,5.4014252]
[1758746301363,2.19134602,212.26,212.25,4.7114252]
[1758746301581,5.82580233,212.26,212.2,5.36253534]
[1758746301778,2.19134602,212.21,212.2,5.36253534]
[1758746302090,2.19134602,212.21,212.2,4.71253534]
[1758746303100,2.19134602,212.21,212.19,16.49440225]
[1758746303276,2.19134602,212.2,212.19,4.71275743]
[1758746303469,2.19134602,212.2,212.18,4.71293951]
[1758746303674,2.19134602,212.19,212.18,4.71293951]
[1758746304597,2.19134602,212.19,212.17,4.71320167]
[1758746304776,2.19134602,212.18,212.17,4.71320167]
[1758746306091,26.0,212.15,212.11,0.1]
[1758746306291,26.5,212.15,212.12,4.71415589]
[1758746306487,2.19134602,212.13,212.12,4.71415589]
[1758746306790,2.69134602,212.13,212.11,0.1]
[1758746306988,28.69134602,212.12,212.11,0.1]
[1758746307502,2.69134602,212.12,212.11,0.1]
[1758746308988,28.19134602,212.06,212.05,14.07488935]
[1758746309180,28.19134602,212.06,212.05,9.35902046]
[1758746309579,28.19134602,212.06,212.05,14.07488935]
[1758746310407,2.19134602,212.06,212.05,14.07488935]
[1758746310778,26.0,212.09,212.05,25.86456159]
[1758746311012,26.0,212.1,212.06,0.65]
[1758746311299,2.19134602,212.07,212.06,0.65]
[1758746312911,2.19134602,212.07,212.06,5.36564651]
[1758746313092,2.19134602,212.07,212.06,17.15476279]
[1758746317696,2.19134602,212.07,212.06,4.71564651]
[1758746318103,2.19134602,212.07,212.05,14.07484965]
[1758746318297,2.19134602,212.06,212.05,14.07484965]
[1758746318716,0.5,212.07,212.05,9.35902046]
[1758746318884,2.19134602,212.06,212.05,14.07488935]
[1758746320208,0.5,212.09,212.05,14.07488935]
[1758746320414,2.19134602,212.06,212.05,14.07488935]
[1758746320614,0.5,212.08,212.05,14.07488935]
[1758746320795,2.19134602,212.06,212.05,14.07488935]
[1758746322603,2.19134602,212.06,212.05,14.72488935]
[1758746323108,2.19134602,212.06,212.05,14.07488935]
[1758746323491,2.19134602,212.06,212.05,14.72488935]
[1758746323708,2.19134602,212.06,212.05,14.07479458]
[1758746325299,28.19134602,212.06,212.05,14.07479458]
[1758746325816,28.19134602,212.06,212.05,14.72479458]
[1758746326110,2.19134602,212.06,212.05,14.07479458]
[1758746327602,2.19134602,212.06,212.05,14.72479458]
[1758746328219,26.0,212.07,212.05,9.35902046]
[1758746328409,2.19134602,212.06,212.05,9.35902046]
[1758746329119,2.19134602,212.06,212.05,14.07487184]
[1758746331616,26.0,212.06,212.05,14.75487184]
[1758746331927,28.19134602,212.06,212.05,14.75487184]
[1758746333501,28.19134602,212.06,212.05,14.07487184]
[1758746333917,25.19134602,212.06,212.05,14.07487184]
[1758746334309,25.19134602,212.06,212.05,9.35902046]
[1758746334711,25.19134602,212.06,212.05,14.07488935]
[1758746336431,25.19134602,212.06,212.05,9.35902046]
[1758746338230,28.28779719,212.06,212.05,9.35902046]
[1758746339329,28.28779719,212.06,212.05,14.07488935]
[1758746339535,28.28779719,212.06,212.05,14.75488935]
[1758746340036,25.19134602,212.06,212.05,14.75488935]
[1758746341231,28.29266582,212.06,212.05,14.75488935]
[1758746341533,25.19134602,212.06,212.05,14.75488935]
[1758746342223,28.28745743,212.06,212.05,14.75488935]
[1758746342416,28.28745743,212.06,212.05,14.07488935]
[1758746342629,28.28745743,212.06,212.05,9.35902046]
[1758746343425,28.28745743,212.06,211.93,11.82437093]
[1758746343426,26.0,212.02,211.93,11.82437093]
[1758746343631,2.19134602,211.97,211.96,4.81782757]
[1758746344225,4.38269204,211.97,211.96,0.1]
[1758746344425,2.19134602,211.97,211.96,0.1]
[1758746344639,2.19134602,211.97,211.96,4.81785898]
[1758746344815,2.19134602,211.97,211.96,5.52785898]
[1758746345939,30.38269204,211.97,211.96,0.1]
[1758746346321,70.84557772,211.97,211.96,0.1]
[1758746347431,5.2942317,211.97,211.96,0.1]
[1758746347737,31.2942317,211.97,211.96,0.81]
[1758746347934,31.2942317,211.97,211.96,0.1]
[1758746348153,33.48557772,211.97,211.96,0.1]
[1758746349418,33.98557772,211.97,211.96,0.1]
[1758746349745,33.48557772,211.97,211.96,0.1]
[1758746349937,40.05961578,211.97,211.96,0.1]
[1758746350326,54.15520979,211.97,211.96,0.1]
[1758746350924,91.01520979,211.97,211.96,0.1]
[1758746351836,68.1542317,211.97,211.96,0.81]
[1758746352350,70.84557772,211.97,211.96,0.1]
[1758746352850,39.59559401,211.93,211.92,0.71]
[1758746353021,39.59559401,211.93,211.68,20.0]
[1758746353022,26.0,211.85,211.68,20.0]
[1758746353222,2.19134602,211.81,211.74,4.65904234]
[1758746353523,2.19134602,211.81,211.75,18.72027163]
[1758746353723,28.19134602,211.85,211.79,2.19134602]
[1758746353926,3.10072781,211.84,211.81,2.19134602]
[1758746354128,2.19134602,211.88,211.82,2.19134602]
[1758746354328,2.19134602,211.87,211.81,2.19134602]
[1758746354541,2.19134602,211.87,211.76,27.79106566]
[1758746354746,2.19134602,211.87,211.81,2.19134602]
[1758746355055,2.19134602,211.87,211.82,0.71]
[1758746355358,2.19134602,211.86,211.82,0.71]
[1758746355530,2.19134602,211.85,211.83,4.72076665]
[1758746355733,2.19134602,211.85,211.84,0.71]
[1758746356463,2.19134602,211.85,211.84,5.4305438]
[1758746357158,26.0,211.89,211.84,5.4305438]
[1758746357660,11.80171266,211.91,211.85,0.71]
[1758746357835,2.19134602,211.9,211.85,2.90134602]
[1758746358023,2.19134602,211.9,211.86,0.71]
[1758746358448,2.19134602,211.9,211.87,4.71987539]
[1758746358652,2.19134602,211.9,211.88,0.71]
[1758746358825,26.0,211.91,211.89,0.71]
[1758746359028,26.0,211.91,211.87,17.22956387]
[1758746359229,39.62542448,211.99,211.87,17.22956387]
[1758746359230,28.78911666,212.0,211.88,0.71]
[1758746359438,28.78911666,212.0,211.9,2.19134602]
[1758746359647,2.19134602,211.95,211.91,0.71]
[1758746360063,26.0,211.99,211.91,0.71]
[1758746360231,2.19134602,211.95,211.91,0.71]
[1758746360433,2.19134602,211.96,211.91,0.71]
[1758746360732,3.43342432,211.96,211.92,16.51566628]
[1758746360928,18.31192015,212.03,211.92,16.51566628]
[1758746360929,0.71,212.03,211.93,4.09342432]
[1758746361152,3.43342432,211.98,211.94,0.66]
[1758746361648,3.43342432,211.98,211.92,19.9490906]
[1758746361852,3.43342432,211.97,211.95,0.66]
[1758746362651,3.43342432,211.97,211.96,4.71787129]
[1758746362953,3.43342432,211.97,211.96,5.37787129]
[1758746364135,4.14342432,211.97,211.91,0.66]
[1758746364331,3.43342432,211.95,211.91,0.66]
[1758746364739,26.0,211.98,211.92,16.51566628]
[1758746364942,3.43342432,211.96,211.93,0.66]
[1758746365762,3.43342432,211.96,211.94,0.66]
[1758746365967,29.43342432,211.97,211.94,0.66]
[1758746366354,3.43342432,211.97,211.94,0.66]
[1758746366769,26.0,211.98,211.95,16.51332861]
[1758746367069,29.43342432,211.98,211.95,17.17332861]
[1758746367359,26.0,211.98,211.95,17.17332861]
[1758746367560,29.43342432,211.98,211.95,17.17332861]
[1758746370759,3.43342432,211.96,211.94,5.3783165]
[1758746371744,36.94,212.02,211.95,0.66]
[1758746371745,26.0,212.02,211.95,0.66]
[1758746371947,29.43342432,211.98,211.95,0.66]
[1758746372459,29.43342432,211.98,211.96,0.66]
[1758746373062,4.14342432,211.97,211.88,0.66]
[1758746373269,3.43342432,211.92,211.88,0.66]
[1758746373448,3.43342432,211.93,211.88,0.66]
[1758746374165,3.43342432,211.9,211.88,0.66]
[1758746374370,3.43342432,211.89,211.86,0.66]
[1758746374554,3.43342432,211.89,211.8,66.13220018]
[1758746374750,3.43342432,211.89,211.87,0.66]
[1758746375972,3.43342432,211.89,211.88,4.71965263]
[1758746376844,0.71,211.91,211.84,5.3805438]
[1758746377055,3.43342432,211.86,211.84,4.7205438]
[1758746377367,3.43342432,211.87,211.84,5.3805438]
[1758746377571,3.43342432,211.88,211.85,0.66]
[1758746377749,3.43342432,211.89,211.85,0.66]
[1758746378146,3.43342432,211.89,211.86,0.66]
[1758746378865,26.0,211.91,211.87,4.71987539]
[1758746379171,3.43342432,211.88,211.87,4.71987539]
[1758746379876,26.71,211.91,211.87,4.71987539]
[1758746380053,3.43342432,211.88,211.87,4.71987539]
[1758746380765,3.43342432,211.89,211.87,4.71987539]
[1758746380960,3.10001607,211.93,211.88,0.66]
[1758746381174,8.15107936,211.97,211.87,4.71987539]
[1758746381175,3.43342432,211.9,211.87,16.51956387]
[1758746381367,3.43342432,211.9,211.87,17.17956387]
[1758746381982,3.43342432,211.9,211.88,0.66]
[1758746382169,3.43342432,211.9,211.89,4.71942989]
[1758746382364,26.0,211.92,211.89,4.71942989]
[1758746382570,3.43342432,211.91,211.89,5.37942989]
[1758746383086,3.43342432,211.91,211.9,0.66]